bitfinex/quotes_SOLUSD_20241008
["timestamp","ask_amount","ask_price","bid_price","bid_amount"]
[1728391099996,6.9507,143.87,143.84,0.8440752]
[1728391100164,1.3825981,143.86,143.84,0.8440752]
[1728391100704,8.3337981,143.86,143.84,0.8440752]
[1728391101211,1.3825981,143.85,143.84,0.8440752]
[1728391102588,8.3341981,143.85,143.84,0.8440752]
[1728391102766,6.9513,143.86,143.84,0.8440752]
[1728391102971,1.3825981,143.85,143.84,0.8440752]
[1728391104096,8.3341981,143.85,143.84,0.8440752]
[1728391104302,6.9516,143.85,143.84,0.8440752]
[1728391105096,6.9512,143.86,143.84,0.8440752]
[1728391105263,1.3825981,143.85,143.84,0.8440752]
[1728391106988,8.3341981,143.85,143.84,0.8440752]
[1728391107177,6.9516,143.85,143.84,0.8440752]
[1728391107491,7.07709,143.85,143.84,0.8440752]
[1728391107701,8.4596881,143.85,143.84,0.8440752]
[1728391108694,8.5851781,143.85,143.84,0.8440752]
[1728391110997,8.4596881,143.85,143.84,0.8440752]
[1728391111384,28.3337981,143.86,143.84,0.8440752]
[1728391111683,7.07709,143.85,143.84,0.8440752]
[1728391111899,27.07709,143.85,143.84,0.8440752]
[1728391112508,26.9516,143.85,143.84,0.8440752]
[1728391112995,27.07709,143.85,143.84,0.8440752]
[1728391113400,26.9516,143.85,143.84,0.8440752]
[1728391113781,1.3825981,143.86,143.84,0.8440752]
[1728391114814,8.3337981,143.86,143.84,0.8440752]
[1728391114986,1.3825981,143.85,143.84,0.8440752]
[1728391115417,8.3341981,143.85,143.84,0.8440752]
[1728391115640,6.9516,143.85,143.84,0.8440752]
[1728391119014,7.20258,143.85,143.84,0.8440752]
[1728391119822,7.07709,143.85,143.84,0.8440752]
[1728391119991,6.9516,143.85,143.84,0.8440752]
[1728391120310,26.9512,143.86,143.84,0.8440752]
[1728391120513,1.3825981,143.85,143.84,0.8440752]
[1728391121933,6.9516,143.85,143.84,0.8440752]
[1728391122716,7.07709,143.85,143.84,0.8440752]
[1728391124492,6.9516,143.85,143.84,0.8440752]
[1728391129406,7.20258,143.85,143.84,0.8440752]
[1728391130005,7.07709,143.85,143.84,0.8440752]
[1728391131409,7.20258,143.85,143.84,0.8440752]
[1728391138109,27.20258,143.85,143.84,0.8440752]
[1728391141422,27.20258,143.85,143.84,4.74437421]
[1728391141842,27.20258,143.85,143.84,0.8440752]
[1728391142013,27.20258,143.85,143.84,4.74825135]
[1728391142328,27.20258,143.85,143.84,0.8440752]
[1728391143040,27.20258,143.85,143.84,8.65371758]
[1728391143213,27.20258,143.85,143.84,4.74889672]
[1728391143602,27.20258,143.85,143.84,8.65371417]
[1728391144013,27.07709,143.85,143.84,8.65371417]
[1728391144216,26.9516,143.85,143.84,8.65371417]
[1728391145030,21.3825981,143.89,143.84,8.65371417]
[1728391145250,1.3825981,143.89,143.85,3.90481745]
[1728391145542,6.9512,143.86,143.84,4.74889672]
[1728391145731,1.3825981,143.85,143.84,4.74889672]
[1728391146107,1.3825981,143.85,143.84,8.65508145]
[1728391147515,6.9516,143.86,143.84,8.65508145]
[1728391147715,6.9516,143.86,143.85,3.90618473]
[1728391148531,7.07709,143.86,143.85,3.90618473]
[1728391149337,27.07709,143.86,143.85,3.90618473]
[1728391150836,7.07709,143.86,143.85,3.90618473]
[1728391151309,27.07709,143.86,143.85,3.90618473]
[1728391152754,6.9516,143.85,143.84,4.74889672]
[1728391153053,8.3341981,143.85,143.84,4.74889672]
[1728391153227,8.3341981,143.85,143.84,8.65767361]
[1728391153743,8.3341981,143.85,143.84,4.75285209]
[1728391154649,6.9516,143.85,143.84,4.75285209]
[1728391155547,1.3825981,143.86,143.84,4.75285209]
[1728391155754,26.9513,143.86,143.85,3.90881137]
[1728391157737,27.07679,143.86,143.85,3.90881137]
[1728391160063,27.07669,143.86,143.85,3.90903692]
[1728391161067,6.9512,143.86,143.85,3.90903692]
[1728391161249,1.3825981,143.88,143.85,3.90903692]
[1728391161452,6.9507,143.87,143.86,3.90903692]
[1728391162737,8.3328981,143.88,143.86,3.90903692]
[1728391162935,28.3328981,143.88,143.87,3.90798625]
[1728391163370,8.3323981,143.89,143.87,3.90798625]
[1728391163677,6.9498,143.89,143.88,3.90709267]
[1728391163844,26.9498,143.89,143.88,3.90709267]
[1728391164041,6.9498,143.89,143.88,3.90709267]
[1728391164255,1.3825981,143.93,143.88,3.90709267]
[1728391164256,21.3825981,143.93,143.88,3.90709267]
[1728391164555,26.9496,143.9,143.89,3.90709267]
[1728391165263,6.9501,143.89,143.86,15.558]
[1728391165465,6.9501,143.89,143.87,3.90382053]
[1728391165466,1.3825981,143.88,143.87,3.90382053]
[1728391165976,1.3825981,143.93,143.87,3.90382053]
[1728391166146,6.9495,143.9,143.88,3.90382053]
[1728391166346,6.9495,143.9,143.86,22.5088]
[1728391166570,6.9495,143.9,143.87,3.90256521]
[1728391166770,6.9495,143.9,143.88,3.90256459]
[1728391166987,6.9495,143.9,143.86,22.5088]
[1728391167156,6.9495,143.9,143.87,3.9025618]
[1728391167361,6.9495,143.9,143.88,3.9025618]
[1728391167666,6.9495,143.9,143.86,22.5088]
[1728391167845,6.9495,143.9,143.87,3.90149325]
[1728391168042,6.9495,143.9,143.88,3.90149325]
[1728391168242,6.9495,143.9,143.86,22.5088]
[1728391168446,6.9495,143.9,143.87,3.90061035]
[1728391168673,6.9495,143.9,143.88,3.90061035]
[1728391168880,6.9495,143.9,143.86,22.5088]
[1728391169186,8.3323981,143.89,143.87,3.90058646]
[1728391169358,6.9498,143.89,143.86,15.558]
[1728391169554,6.9498,143.89,143.87,3.89980109]
[1728391169754,6.9498,143.89,143.86,15.558]
[1728391169967,6.9498,143.89,143.87,3.89990728]
[1728391170174,6.9498,143.89,143.86,15.558]
[1728391170351,6.9498,143.89,143.87,3.89934933]
[1728391170672,6.9498,143.89,143.86,15.558]
[1728391170975,6.9498,143.89,143.87,3.89933488]
[1728391171177,6.9498,143.89,143.86,15.558]
[1728391171388,6.9498,143.89,143.87,3.89883091]
[1728391171674,6.9498,143.89,143.86,15.558]
[1728391171846,0.12549,143.92,143.87,3.89878406]
[1728391172045,1.3825981,143.91,143.86,15.558]
[1728391172274,1.3825981,143.91,143.87,3.89865182]
[1728391172474,1.3825981,143.91,143.86,15.558]
[1728391172770,1.3825981,143.91,143.87,3.89796793]
[1728391173078,0.12549,143.92,143.87,6.9505]
[1728391173079,8.3317981,143.9,143.87,6.9505]
[1728391173369,6.9492,143.9,143.87,6.9505]
[1728391173763,1.3825981,143.92,143.89,6.9493]
[1728391173978,1.3825981,143.92,143.88,1.38986589]
[1728391173979,20.0,143.92,143.88,24.3241]
[1728391174170,6.9485,143.92,143.89,6.9497]
[1728391174374,1.3825981,143.95,143.88,17.3743]
[1728391174577,21.3825981,143.94,143.88,3.89659553]
[1728391174779,6.9497,143.89,143.88,3.89659553]
[1728391175087,6.9497,143.89,143.86,15.558]
[1728391175088,6.9497,143.89,143.87,3.89668145]
[1728391175289,6.9497,143.89,143.86,15.558]
[1728391175590,6.9497,143.89,143.87,3.89637073]
[1728391175765,6.9497,143.89,143.86,22.5091]
[1728391175966,6.9497,143.89,143.87,3.89637135]
[1728391176179,1.3825981,143.92,143.87,6.9506]
[1728391176386,21.3825981,143.92,143.86,15.558]
[1728391176571,6.9495,143.9,143.87,3.89585325]
[1728391177490,6.9495,143.9,143.86,22.5091]
[1728391177701,6.9495,143.9,143.87,3.89555298]
[1728391177868,6.9495,143.9,143.87,6.9506]
[1728391178271,6.9495,143.9,143.87,3.89526692]
[1728391180390,6.9495,143.9,143.86,22.5089]
[1728391180686,6.9495,143.9,143.87,3.89495824]
[1728391181364,6.9491,143.91,143.87,10.84555824]
[1728391181662,1.3825981,143.9,143.87,10.84555824]
[1728391181791,6.9492,143.9,143.86,22.509]
[1728391182208,6.9492,143.9,143.87,3.89479185]
[1728391183815,6.9489,143.91,143.87,10.84529185]
[1728391184783,1.3825981,143.9,143.87,10.84529185]
[1728391184984,8.3318981,143.9,143.87,3.89479185]
[1728391185508,6.9493,143.9,143.87,3.89479185]
[1728391187501,6.9493,143.9,143.86,22.509]
[1728391187713,6.9493,143.9,143.87,3.89477967]
[1728391187887,6.9493,143.9,143.86,22.509]
[1728391188079,6.9493,143.9,143.87,3.89477967]
[1728391188279,6.9493,143.9,143.87,3.89473411]
[1728391188706,8.3325981,143.89,143.87,3.89473411]
[1728391188882,6.95,143.89,143.87,3.89473411]
[1728391189657,1.3825981,143.92,143.87,3.89473411]
[1728391189825,20.12549,143.9,143.86,3.89499409]
[1728391190031,1.3825981,143.89,143.85,3.89499409]
[1728391190208,1.3825981,143.89,143.84,0.8440752]
[1728391190209,6.9516,143.85,143.84,0.8440752]
[1728391190409,6.9516,143.85,143.84,4.74022202]
[1728391191015,6.9516,143.85,143.84,0.8440752]
[1728391191740,6.9516,143.85,143.84,4.74044911]
[1728391191928,6.9516,143.85,143.84,0.8440752]
[1728391192513,6.9516,143.85,143.84,4.74045252]
[1728391192846,6.9516,143.85,143.84,0.8440752]
[1728391193421,6.9516,143.85,143.84,4.74045252]
[1728391193614,6.9516,143.85,143.84,0.8440752]
[1728391195809,27.20258,143.85,143.84,0.8440752]
[1728391198334,50.979464,143.85,143.84,0.8440752]
[1728391199136,52.3620621,143.85,143.84,0.8440752]
[1728391199323,28.5851781,143.85,143.84,0.8440752]
[1728391199523,52.3620621,143.85,143.84,0.8440752]
[1728391200538,28.5851781,143.85,143.84,0.8440752]
[1728391210072,28.3341981,143.85,143.84,0.8440752]
[1728391210275,8.3341981,143.85,143.84,0.8440752]
[1728391210458,6.9516,143.85,143.84,0.8440752]
[1728391210653,8.3340981,143.86,143.84,0.8440752]
[1728391210847,1.3825981,143.85,143.84,0.8440752]
[1728391211168,6.9515,143.86,143.84,0.8440752]
[1728391211370,8.3314981,143.91,143.87,15.4986]
[1728391211558,1.3825981,143.96,143.87,15.4986]
[1728391211746,6.9484,143.92,143.88,1.38989289]
[1728391211951,6.9484,143.92,143.88,6.9501]
[1728391212150,1.3825981,143.91,143.87,39.8254]
[1728391212667,1.3825981,143.91,143.87,32.8749]
[1728391212972,6.9484,143.92,143.87,39.8255]
[1728391213191,1.3825981,143.91,143.87,39.8254]
[1728391215176,6.9484,143.92,143.87,39.8254]
[1728391215695,0.25098,143.94,143.87,45.76822149]
[1728391216021,8.3303981,143.93,143.89,6.9495]
[1728391216369,8.3303981,143.93,143.88,12.89332149]
[1728391216568,8.3303981,143.93,143.88,19.84342149]
[1728391216784,8.3308981,143.92,143.88,19.84342149]
[1728391216977,6.9483,143.92,143.88,19.84342149]
[1728391218091,1.3825981,143.91,143.88,12.89332149]
[1728391219176,6.9483,143.92,143.88,12.89332149]
[1728391219595,1.3825981,143.91,143.88,12.89332149]
[1728391219890,6.9483,143.92,143.88,14.28315183]
[1728391220197,6.9479,143.93,143.89,6.9497]
[1728391220790,8.3302981,143.94,143.89,6.9497]
[1728391222276,6.948,143.93,143.89,6.9497]
[1728391222473,8.3308981,143.92,143.88,6.95]
[1728391222693,6.9483,143.92,143.88,6.95]
[1728391224298,1.3825981,143.94,143.87,45.76822149]
[1728391224473,6.9488,143.91,143.87,39.8254]
[1728391226776,1.3825981,143.94,143.88,1.38982962]
[1728391226985,6.9478,143.93,143.89,6.9495]
[1728391227678,20.0,143.95,143.9,14.28310768]
[1728391227883,21.3825981,143.98,143.91,6.9487]
[1728391228077,6.9473,143.94,143.91,6.9487]
[1728391228286,6.9473,143.94,143.9,21.23220768]
[1728391228593,6.9473,143.94,143.9,6.9491]
[1728391233112,6.9473,143.94,143.89,17.3741]
[1728391233113,1.3825981,143.93,143.89,24.3238]
[1728391233281,21.3825981,143.96,143.89,24.3238]
[1728391233603,6.9485,143.92,143.89,17.3741]
[1728391234888,6.9485,143.92,143.89,24.3237]
[1728391236399,6.9479,143.93,143.9,1.38973597]
[1728391236613,6.9474,143.94,143.9,8.33883597]
[1728391239410,6.9474,143.94,143.9,6.9491]
[1728391239597,8.3304981,143.93,143.89,37.21692149]
[1728391239803,6.9479,143.93,143.89,37.21692149]
[1728391242510,6.9479,143.93,143.9,1.38966127]
[1728391243118,6.9479,143.93,143.89,24.3236]
[1728391248423,6.9479,143.93,143.9,1.38965739]
[1728391248601,6.9479,143.93,143.89,24.3236]
[1728391248807,1.3825981,143.96,143.91,17.3719]
[1728391249008,1.3825981,143.96,143.92,24.86951532]
[1728391249321,6.9472,143.95,143.92,16.5322]
[1728391253922,6.9472,143.95,143.9,6.1473]
[1728391253923,1.3825981,143.95,143.9,6.1473]
[1728391254136,6.9475,143.94,143.9,13.0964]
[1728391254922,17.3663,143.96,143.9,13.0964]
[1728391254923,8.3304981,143.93,143.9,13.0964]
[1728391255220,6.9479,143.93,143.9,6.1473]
[1728391256420,6.9479,143.93,143.89,23.1682]
[1728391257306,6.9479,143.93,143.9,3.87261933]
[1728391257622,6.9479,143.93,143.89,23.1682]
[1728391257823,6.9479,143.93,143.9,3.87261933]
[1728391258002,6.9479,143.93,143.89,23.1682]
[1728391258204,6.9479,143.93,143.9,3.87261933]
[1728391258405,6.9479,143.93,143.89,23.1682]
[1728391258726,6.9479,143.93,143.9,12.21212173]
[1728391258910,6.9479,143.93,143.9,6.9492]
[1728391259312,6.9479,143.93,143.89,23.1682]
[1728391259507,6.9479,143.93,143.9,3.87348465]
[1728391259705,6.9479,143.93,143.89,23.1682]
[1728391260003,6.9479,143.93,143.9,3.87346292]
[1728391260304,6.9479,143.93,143.89,23.1682]
[1728391260505,6.9479,143.93,143.9,3.87397386]
[1728391260720,6.9479,143.93,143.89,23.1682]
[1728391260721,8.3308981,143.92,143.91,3.87397386]
[1728391260902,0.12549,143.94,143.86,6.1237]
[1728391261103,6.9493,143.9,143.87,3.87446345]
[1728391261325,6.9493,143.9,143.86,13.0745]
[1728391261326,6.9493,143.9,143.88,3.87446345]
[1728391261625,6.9493,143.9,143.89,3.87446345]
[1728391262225,6.9493,143.9,143.86,6.1237]
[1728391262410,6.9493,143.9,143.87,3.87524802]
[1728391262607,21.3825981,143.93,143.88,1.3899726]
[1728391262806,6.9484,143.92,143.88,8.3400726]
[1728391263208,6.9478,143.93,143.89,6.9495]
[1728391263420,6.9471,143.95,143.91,6.9487]
[1728391263627,21.3825981,143.96,143.91,6.9487]
[1728391263628,8.3290981,143.96,143.92,8.33774121]
[1728391263817,6.9465,143.96,143.92,8.33774121]
[1728391264534,6.9468,143.95,143.92,1.38954121]
[1728391264719,6.9465,143.96,143.92,1.38954121]
[1728391265025,1.3825981,143.98,143.92,6.9482]
[1728391265026,6.9468,143.95,143.92,6.9482]
[1728391265831,21.3825981,143.98,143.92,8.33764711]
[1728391266007,6.9464,143.96,143.92,8.33764711]
[1728391270232,6.9464,143.96,143.93,3.87344367]
[1728391270608,6.9464,143.96,143.92,8.33764711]
[1728391273836,6.9456,143.98,143.93,54.03940549]
[1728391274011,6.945,143.99,143.95,6.9465]
[1728391274213,6.945,143.99,143.96,1.38906908]
[1728391274522,6.9454,143.98,143.95,23.2434]
[1728391275117,0.12549,144.02,143.95,23.2434]
[1728391275335,6.945,143.99,143.96,1.38905769]
[1728391276626,6.945,143.99,143.95,36.13672149]
[1728391277135,6.945,143.99,143.96,1.38904134]
[1728391277336,6.945,143.99,143.95,36.13672149]
[1728391277530,6.945,143.99,143.95,23.2434]
[1728391277710,1.3825981,144.01,143.95,23.2434]
[1728391277911,6.9454,143.98,143.95,16.2969]
[1728391285929,6.945,143.99,143.96,1.38909353]
[1728391287555,6.945,143.99,143.95,23.2436]
[1728391287847,6.9454,143.98,143.95,23.2436]
[1728391288150,6.9454,143.98,143.95,16.2969]
[1728391289260,6.9463,143.96,143.95,16.2969]
[1728391289625,17.3623,143.99,143.92,29.791]
[1728391289819,6.9471,143.95,143.92,22.8431]
[1728391290849,6.9474,143.94,143.91,17.3719]
[1728391291324,1.3825981,143.96,143.9,3.86274925]
[1728391291669,6.9475,143.94,143.9,10.81184925]
[1728391291821,6.9475,143.94,143.9,6.9491]
[1728391292217,6.9475,143.94,143.9,10.81184925]
[1728391294344,6.9475,143.94,143.9,6.9491]
[1728391294549,6.9475,143.94,143.9,10.81184925]
[1728391295024,6.948,143.93,143.89,26.50444925]
[1728391296853,6.9483,143.92,143.89,26.50444925]
[1728391297261,6.9483,143.92,143.89,22.6417]
[1728391297446,6.9479,143.93,143.9,1.38964291]
[1728391297840,6.9479,143.93,143.89,26.50520133]
[1728391299971,6.9479,143.93,143.9,1.38962727]
[1728391300745,1.3825981,143.96,143.9,1.38962727]
[1728391301075,6.9474,143.94,143.9,8.33872727]
[1728391301365,6.9474,143.94,143.9,12.202182]
[1728391301872,6.9474,143.94,143.9,12.20224729]
[1728391302569,6.9474,143.94,143.9,10.81262002]
[1728391303469,6.9474,143.94,143.91,1.38949203]
[1728391304074,6.9474,143.94,143.9,10.81262002]
[1728391304253,6.9474,143.94,143.9,10.81331158]
[1728391305871,21.3825981,143.96,143.9,3.86421158]
[1728391306077,6.948,143.93,143.89,26.50591158]
[1728391306252,1.3825981,143.96,143.89,26.50591158]
[1728391306253,21.3825981,143.96,143.89,19.55631158]
[1728391306454,6.9479,143.93,143.89,22.6415]
[1728391307174,6.9479,143.93,143.9,3.86548446]
[1728391307853,6.9479,143.93,143.9,3.86548384]
[1728391308171,6.9479,143.93,143.91,1.38958706]
[1728391308672,6.9479,143.93,143.9,3.86548384]
[1728391308872,6.9477,143.94,143.9,10.81458384]
[1728391309197,6.9477,143.94,143.9,6.9491]
[1728391309380,6.9479,143.93,143.89,22.6416]
[1728391309551,6.9479,143.93,143.9,3.86805743]
[1728391309751,6.9479,143.93,143.89,22.6416]
[1728391309954,6.9479,143.93,143.9,3.86805681]
[1728391310160,1.3825981,143.94,143.89,15.6921]
[1728391310360,6.9486,143.92,143.9,3.86804978]
[1728391310578,6.9486,143.92,143.89,15.6921]
[1728391310759,6.9486,143.92,143.9,3.86810196]
[1728391310966,6.9486,143.92,143.89,15.6921]
[1728391311252,18.7497981,143.95,143.9,3.86810527]
[1728391311452,6.948,143.93,143.9,3.86810527]
[1728391311748,6.948,143.93,143.89,22.6418]
[1728391311946,6.948,143.93,143.9,3.86803894]
[1728391312145,6.948,143.93,143.89,22.6418]
[1728391312456,6.948,143.93,143.9,3.86797647]
[1728391312670,6.9475,143.94,143.9,6.9492]
[1728391313179,6.947,143.95,143.91,8.33825223]
[1728391314153,6.9474,143.94,143.91,1.38955223]
[1728391314355,6.9474,143.94,143.9,24.322]
[1728391314768,6.9478,143.93,143.9,24.322]
[1728391316260,1.3825981,143.96,143.9,24.322]
[1728391316576,6.9475,143.94,143.91,1.38947042]
[1728391316959,6.9475,143.94,143.9,24.322]
[1728391318880,6.9475,143.94,143.91,1.38947161]
[1728391319686,6.9475,143.94,143.9,24.322]
[1728391320484,6.9465,143.96,143.92,6.9482]
[1728391320682,6.9462,143.97,143.93,8.33694853]
[1728391320990,6.9464,143.96,143.93,8.33694853]
[1728391321194,1.3825981,143.99,143.92,17.3705]
[1728391321374,6.9471,143.95,143.92,17.3705]
[1728391321560,18.7449981,143.99,143.92,24.3186]
[1728391321561,6.9466,143.96,143.92,24.3186]
[1728391321764,6.9468,143.95,143.92,24.3186]
[1728391323193,6.9462,143.97,143.93,8.33670844]
[1728391323483,6.9462,143.97,143.94,1.389225]
[1728391324389,6.9463,143.96,143.93,6.9474]
[1728391325600,1.3825981,143.99,143.94,24.41893497]
[1728391325601,20.0,143.99,143.94,24.41893497]
[1728391325764,6.9456,143.98,143.94,24.41893497]
[1728391325964,1.3825981,144.01,143.95,6.9465]
[1728391325965,6.9449,143.99,143.95,6.9465]
[1728391326186,6.9449,143.99,143.96,1.38905397]
[1728391326376,18.7426981,144.01,143.94,16.0828]
[1728391326574,1.3825981,144.0,143.94,16.0828]
[1728391326776,1.3825981,144.0,143.94,23.03]
[1728391326777,6.9455,143.98,143.94,23.03]
[1728391326995,6.9455,143.98,143.94,26.89682097]
[1728391327200,6.9455,143.98,143.95,1.38908759]
[1728391328190,6.9455,143.98,143.94,23.03]
[1728391328385,6.9455,143.98,143.95,1.389087]
[1728391328573,6.9455,143.98,143.94,26.89672841]
[1728391328888,6.9459,143.97,143.94,23.03]
[1728391330102,6.9455,143.98,143.95,1.38910885]
[1728391334981,6.9455,143.98,143.94,23.03]
[1728391335902,6.9455,143.98,143.95,1.38903569]
[1728391336795,6.9449,143.99,143.95,25.70203569]
[1728391337007,6.9449,143.99,143.96,6.9463]
[1728391337298,6.9449,143.99,143.97,1.38896504]
[1728391337682,6.9449,143.99,143.95,24.3131]
[1728391340204,17.3589,144.02,143.96,25.16584999]
[1728391340403,6.9445,144.0,143.96,30.722884]
[1728391340586,6.9449,143.99,143.96,23.776884]
[1728391344910,18.7414981,144.02,143.96,23.776884]
[1728391345111,6.9455,143.98,143.96,23.776884]
[1728391348722,6.9455,143.98,143.95,17.3664]
[1728391349300,6.9455,143.98,143.94,23.0298]
[1728391352024,17.3611,144.0,143.94,16.0828]
[1728391352215,6.9464,143.96,143.94,16.0828]
[1728391353416,6.9464,143.96,143.95,1.38915639]
[1728391353727,6.946,143.97,143.95,1.38915639]
[1728391354735,6.946,143.97,143.94,16.0828]
[1728391357432,6.9474,143.94,143.91,17.3719]
[1728391357609,6.9479,143.93,143.9,15.1411]
[1728391359428,6.9486,143.92,143.88,24.3244]
[1728391359723,6.9486,143.92,143.88,37.21772149]
[1728391360426,6.9486,143.92,143.88,24.3244]
[1728391362924,6.9484,143.92,143.88,24.3244]
[1728391364630,6.949,143.91,143.88,17.3745]
[1728391365551,1.3825981,143.95,143.88,24.3247]
[1728391365842,6.9489,143.91,143.88,17.3745]
[1728391366213,6.9489,143.91,143.88,24.3247]
[1728391368117,6.9493,143.9,143.86,6.951]
[1728391368628,6.9497,143.89,143.86,6.951]
[1728391368828,6.9497,143.89,143.85,24.3298]
[1728391370445,6.9497,143.89,143.86,1.38996592]
[1728391371133,6.9497,143.89,143.85,24.3298]
[1728391372038,1.3825981,143.91,143.84,16.1473752]
[1728391372336,6.9507,143.87,143.84,7.7961752]
[1728391373133,6.9503,143.88,143.84,7.7961752]
[1728391373543,1.3825981,143.91,143.84,7.7961752]
[1728391373842,6.9507,143.87,143.84,0.8440752]
[1728391374625,1.3825981,143.89,143.84,0.8440752]
[1728391374940,6.9516,143.85,143.84,0.8440752]
[1728391377949,7.07709,143.85,143.84,0.8440752]
[1728391378751,27.07709,143.85,143.84,0.8440752]
[1728391378942,27.20258,143.85,143.84,0.8440752]
[1728391379521,33.49778,143.85,143.76,40.3683]
[1728391379728,33.49778,143.85,143.71,43.76849674]
[1728391379729,6.9546,143.79,143.75,6.9563]
[1728391380240,20.12549,143.81,143.73,32.9719]
[1728391380438,6.9559,143.77,143.73,39.9292]
[1728391380654,6.956,143.76,143.73,17.3927]
[1728391380957,1.3825981,143.8,143.74,1.39114264]
[1728391381934,1.3825981,143.8,143.73,17.3927]
[1728391382135,6.956,143.76,143.72,6.9579]
[1728391382658,6.9561,143.76,143.72,6.9578]
[1728391382867,6.9561,143.76,143.69,0.8440752]
[1728391382868,20.0,143.72,143.69,0.8440752]
[1728391383048,6.9589,143.7,143.69,0.8440752]
[1728391383356,27.08439,143.7,143.69,0.8440752]
[1728391383537,28.4669881,143.7,143.69,0.8440752]
[1728391384558,27.20988,143.7,143.69,0.8440752]
[1728391385235,6.962,143.64,143.59,6.9642]
[1728391385431,20.0,143.71,143.59,6.9642]
[1728391385432,20.0,143.66,143.59,6.9642]
[1728391385664,20.0,143.66,143.58,15.4427]
[1728391385954,6.9627,143.63,143.58,35.30072149]
[1728391386159,21.3825981,143.66,143.58,15.4427]
[1728391386355,28.3438981,143.66,143.6,6.9633]
[1728391386535,28.3438981,143.66,143.61,6.9633]
[1728391386536,26.9609,143.66,143.61,6.9633]
[1728391386730,6.9614,143.65,143.6,6.9637]
[1728391387163,8.3439981,143.65,143.6,6.9637]
[1728391387335,6.9614,143.65,143.6,6.9637]
[1728391387954,8.3439981,143.65,143.6,6.9637]
[1728391388155,1.3825981,143.65,143.6,6.9637]
[1728391388463,6.9619,143.64,143.6,6.9637]
[1728391389464,6.9619,143.64,143.59,17.4099]
[1728391389640,6.9619,143.64,143.59,24.374]
[1728391390135,1.3825981,143.65,143.58,15.4427]
[1728391390646,8.3438981,143.65,143.6,6.9636]
[1728391390856,1.3825981,143.65,143.59,48.150984]
[1728391391061,6.9624,143.63,143.59,48.150984]
[1728391391556,8.3443981,143.65,143.59,48.150984]
[1728391391748,6.962,143.64,143.59,48.150984]
[1728391392063,7.9225981,143.67,143.61,17.4076]
[1728391392365,1.3825981,143.66,143.61,17.4076]
[1728391392568,1.3825981,143.66,143.61,24.3708]
[1728391392751,1.3825981,143.66,143.61,17.4076]
[1728391392940,6.9614,143.65,143.61,24.3708]
[1728391394365,6.9614,143.65,143.61,17.4076]
[1728391394549,6.9618,143.64,143.61,17.4076]
[1728391396151,6.9618,143.64,143.6,6.9637]
[1728391396664,6.9618,143.64,143.59,30.741084]
[1728391397272,1.3825981,143.66,143.59,30.741084]
[1728391397451,6.9625,143.63,143.59,6.9642]
[1728391398548,6.9625,143.63,143.6,1.39249425]
[1728391399352,6.9625,143.63,143.59,6.9642]
[1728391400244,6.9625,143.63,143.58,24.3756]
[1728391400451,1.3825981,143.62,143.58,17.4112]
[1728391400653,6.9629,143.62,143.58,17.4112]
[1728391400851,6.9633,143.61,143.58,17.4112]
[1728391401076,6.9639,143.6,143.55,25.2248752]
[1728391401383,0.12549,143.62,143.55,0.8440752]
[1728391401553,1.5080881,143.64,143.56,14.286178]
[1728391401752,0.12549,143.64,143.59,6.9638]
[1728391402082,6.9624,143.63,143.59,17.4096]
[1728391402248,36.3737,143.66,143.59,17.4096]
[1728391402249,1.3825981,143.65,143.6,14.28595829]
[1728391402574,1.3825981,143.7,143.64,6.9618]
[1728391402778,1.3825981,143.7,143.65,6.9612]
[1728391402779,6.959,143.7,143.65,6.9612]
[1728391402960,6.959,143.7,143.66,6.9607]
[1728391403153,6.9586,143.71,143.66,30.29522149]
[1728391403352,6.9589,143.7,143.66,24.3626]
[1728391403546,1.3825981,143.72,143.66,17.4019]
[1728391403771,6.9594,143.69,143.65,6.9612]
[1728391403970,6.9599,143.68,143.64,30.738584]
[1728391404146,6.9599,143.68,143.64,23.776884]
[1728391404355,1.3825981,143.72,143.64,6.9617]
[1728391404552,6.9602,143.68,143.63,24.3675]
[1728391404752,6.9601,143.68,143.64,6.9618]
[1728391405056,6.9601,143.68,143.65,1.39205077]